bitfinex-derivatives/quotes_ETHF0:USTF0_20250726
["timestamp","ask_amount","ask_price","bid_price","bid_amount"]
[1753491257781,2.93966091,3720.4,3720.3,2.67616813]
[1753491257985,2.93966091,3720.4,3720.3,2.97506813]
[1753491258692,2.93966091,3720.4,3720.3,1.08914942]
[1753491258988,2.93966091,3720.4,3720.3,0.70914942]
[1753491260086,2.93966091,3720.4,3720.3,1.00804942]
[1753491260590,2.93966091,3720.4,3720.3,1.19784942]
[1753491261490,2.93966091,3720.4,3720.3,1.73531942]
[1753491261687,2.93966091,3720.4,3720.3,1.92551942]
[1753491261889,2.93966091,3720.4,3720.3,1.38804942]
[1753491262193,2.93966091,3720.4,3720.3,2.23581942]
[1753491262398,2.40221091,3720.4,3720.3,2.54531942]
[1753491262696,2.93966091,3720.4,3720.3,2.54531942]
[1753491263593,2.93966091,3720.4,3720.3,2.00784942]
[1753491263789,2.93966091,3720.4,3720.3,1.69834942]
[1753491265096,2.93966091,3720.4,3720.3,0.35104942]
[1753491265297,7.93966091,3720.4,3720.3,0.35104942]
[1753491265600,2.93966091,3720.4,3720.3,0.35104942]
[1753491266291,0.5375,3720.1,3720.0,1.3473]
[1753491266496,5.4906,3720.1,3720.0,1.69827348]
[1753491266698,6.14981091,3720.1,3720.0,1.69827348]
[1753491267001,2.50161091,3720.1,3720.0,2.74702219]
[1753491267200,2.94201091,3720.1,3720.0,2.74702219]
[1753491267698,2.50161091,3720.1,3720.0,2.74702219]
[1753491268602,0.65921091,3720.1,3720.0,3.28453219]
[1753491268796,0.94698886,3720.3,3720.2,1.22778]
[1753491269001,0.94698886,3720.3,3720.2,3.28450219]
[1753491270501,1.25148886,3720.3,3720.2,3.28450219]
[1753491271291,1.78895886,3720.3,3720.2,3.28450219]
[1753491271603,2.73885886,3720.3,3720.2,3.28450219]
[1753491271793,2.40668886,3720.3,3720.2,3.28450219]
[1753491272195,2.45965886,3720.3,3720.2,2.24758514]
[1753491275600,2.43835886,3720.3,3720.2,2.24758514]
[1753491277205,2.93575886,3720.3,3720.2,2.73528514]
[1753491278005,2.93575886,3720.3,3720.2,2.7352514]
[1753491278704,2.93575886,3720.3,3720.2,3.2727314]
[1753491278901,2.93575886,3720.3,3720.2,2.7352514]
[1753491280705,2.39828886,3720.3,3720.2,3.2727314]
[1753491280901,0.66138886,3720.3,3720.2,3.27273621]
[1753491281798,0.7309,3720.9,3720.8,1.2431]
[1753491281994,0.7309,3721.1,3721.0,2.20947]
[1753491282194,1.44954419,3721.2,3721.0,2.20947]
[1753491282195,2.05494419,3721.3,3721.2,1.24304]
[1753491282397,2.28536419,3721.3,3721.2,2.5602475]
[1753491282701,0.2985,3721.3,3721.2,2.5602475]
[1753491283095,2.06332,3721.3,3721.2,2.5602475]
[1753491283406,2.26652,3721.3,3721.2,2.5602475]
[1753491283906,1.7292,3721.3,3721.2,2.55238468]
[1753491284501,2.26652,3721.3,3721.2,2.55238468]
[1753491284902,2.26652,3721.3,3721.2,1.71714468]
[1753491286297,2.26652,3721.3,3721.2,0.34294468]
[1753491286907,1.7292,3721.3,3721.2,1.23898468]
[1753491287107,2.26652,3721.3,3721.2,1.22184468]
[1753491287504,2.26652,3721.3,3721.2,0.34294468]
[1753491287900,3.71600497,3721.3,3721.2,0.34294468]
[1753491288207,3.7158006,3721.3,3721.2,0.34294468]
[1753491288598,2.26652,3721.3,3721.2,0.34294468]
[1753491292713,0.6914,3721.1,3721.0,0.7057]
[1753491292915,2.26655,3721.1,3721.0,1.04797456]
[1753491293214,2.26655,3721.1,3721.0,1.71627748]
[1753491295210,1.7292,3721.1,3721.0,2.25364748]
[1753491295417,1.7292,3721.1,3721.0,3.29079619]
[1753491295616,1.0936,3721.1,3721.0,3.2907727]
[1753491295915,3.5063,3721.2,3721.1,2.20925]
[1753491296115,3.5063,3721.2,3721.1,2.55150399]
[1753491296317,3.8132,3721.2,3721.1,2.55150399]
[1753491296616,4.4368,3721.2,3721.1,2.55150399]
[1753491296814,4.7338,3721.2,3721.1,2.55150399]
[1753491297222,4.3014,3721.2,3721.1,2.55150399]
[1753491298716,1.0936,3721.2,3721.1,2.55150399]
[1753491298917,0.2985,3721.2,3721.1,2.55150399]
[1753491299221,4.2456,3721.3,3721.2,2.20924]
[1753491299421,5.47432,3721.3,3721.2,2.55147877]
[1753491299921,4.937,3721.3,3721.2,2.55147877]
[1753491300121,1.7292,3721.3,3721.2,2.55147877]
[1753491300419,2.26652,3721.3,3721.2,2.55147877]
[1753491300816,1.2275,3721.6,3721.5,1.24299]
[1753491301013,1.2275,3721.6,3721.5,3.29067748]
[1753491301224,1.4307,3721.6,3721.5,3.29067748]
[1753491301520,1.7292,3721.6,3721.5,3.29067748]
[1753491302515,0.2985,3721.6,3721.5,3.29067748]
[1753491302716,1.526,3721.9,3721.8,2.20915]
[1753491302919,2.18263511,3721.9,3721.8,3.29063748]
[1753491303110,2.38583511,3721.9,3721.8,3.29063748]
[1753491304116,2.92307511,3721.9,3721.8,2.99273748]
[1753491304518,2.38583511,3721.9,3721.8,2.99273748]
[1753491304925,2.38583511,3721.9,3721.8,3.29063748]
[1753491304926,1.7292,3721.9,3721.8,3.29063748]
[1753491305218,0.2985,3721.9,3721.8,3.29063748]
[1753491305421,3.4975,3722.1,3722.0,2.21292]
[1753491305722,0.2897,3722.3,3722.2,2.21289]
[1753491306024,0.2897,3722.3,3722.2,3.29437748]
[1753491306423,0.2897,3722.6,3722.5,2.21285]
[1753491306616,0.2897,3722.6,3722.5,6.50213748]
[1753491306923,1.0527,3722.8,3722.7,2.21282]
[1753491307123,1.0527,3722.8,3722.7,2.55505877]
[1753491307311,1.5437,3722.8,3722.7,2.55505877]
[1753491307721,1.7364,3722.8,3722.7,2.55505877]
[1753491309524,1.7364,3722.8,3722.7,2.55392089]
[1753491310317,1.7364,3722.8,3722.7,0.87822089]
[1753491311023,1.7364,3722.8,3722.7,2.24912089]
[1753491312220,1.7364,3722.8,3722.7,0.87822089]
[1753491312618,1.7364,3722.8,3722.7,0.53712]
[1753491312819,1.7364,3722.8,3722.7,0.87795428]
[1753491313019,1.7364,3722.8,3722.7,0.53712]
[1753491315024,1.7364,3722.8,3722.7,0.89562]
[1753491316324,0.763,3722.7,3722.5,3.2078]
[1753491316529,0.763,3722.5,3722.4,0.53716]
[1753491316725,1.4467,3722.5,3722.4,0.87931118]
[1753491316926,1.7364,3722.5,3722.4,0.87931118]
[1753491317531,1.7364,3722.5,3722.0,4.25184871]
[1753491317532,0.6837,3722.2,3722.1,0.53721]
[1753491317734,1.7364,3722.2,3722.1,0.87940045]
[1753491318625,1.7364,3722.2,3722.1,1.23740045]
[1753491318830,1.7364,3722.2,3722.1,1.74650045]
[1753491319730,1.7364,3722.2,3722.1,1.95400045]
[1753491320633,1.7364,3722.2,3722.1,2.24980045]
[1753491321032,1.7364,3722.2,3722.1,2.55460045]
[1753491323528,1.34263,3723.2,3722.1,2.55460045]
[1753491323529,0.4588,3722.8,3722.3,1.6752]
[1753491323724,0.6837,3722.8,3722.7,2.95156871]
[1753491324126,1.7364,3722.8,3722.7,2.95156871]
[1753491324731,0.763,3723.2,3723.1,2.21226]
[1753491325032,0.85569834,3723.2,3723.1,6.15930871]
[1753491325231,2.38919834,3723.2,3723.1,6.15930871]
[1753491326137,2.38919834,3723.2,3723.1,5.85450871]
[1753491326928,0.491,3723.0,3722.9,0.53708]
[1753491327135,2.92627834,3723.0,3722.9,0.34250125]
[1753491327634,1.7364,3722.7,3722.6,0.53713]
[1753491327835,1.7364,3722.7,3722.6,0.87982346]
[1753491328237,1.7364,3722.7,3722.6,0.87999207]
[1753491329535,1.7364,3722.7,3722.6,1.44619207]
[1753491329942,1.7364,3722.7,3722.6,2.25039207]
[1753491330138,1.2776,3722.7,3722.6,1.89239207]
[1753491330337,1.7364,3722.7,3722.6,2.25039207]
[1753491332144,1.7364,3722.7,3722.6,2.98964078]
[1753491333238,2.3909636,3722.7,3722.6,2.98964078]
[1753491334536,2.3909636,3722.7,3722.6,3.29444078]
[1753491335041,1.6279636,3722.7,3722.6,3.29444078]
[1753491335245,0.6545636,3722.7,3722.6,3.29444078]
[1753491336347,0.9571636,3722.7,3722.6,3.29444078]
[1753491336747,1.2703636,3722.7,3722.6,3.29444078]
[1753491337047,1.4805636,3722.7,3722.6,3.29444078]
[1753491337646,2.4294636,3722.7,3722.6,3.29444078]
[1753491338044,2.4294636,3722.7,3722.6,2.98964078]
[1753491339850,2.4294636,3722.7,3722.6,0.87999207]
[1753491340252,2.9665836,3722.7,3722.6,0.87999207]
[1753491341655,2.4294636,3722.7,3722.6,0.87999207]
[1753491342450,2.4294636,3722.7,3722.6,0.53713]
[1753491342657,2.4294636,3722.7,3722.6,0.8807666]
[1753491342855,2.4294636,3722.7,3722.6,1.9517666]
[1753491343148,2.4294636,3722.7,3722.6,3.28121531]
[1753491343355,1.9699636,3722.7,3722.6,3.28121531]
[1753491343557,1.3154,3722.7,3722.6,3.28121531]
[1753491343854,2.43237404,3722.7,3722.6,3.28121531]
[1753491344356,2.43237404,3722.7,3722.6,2.93757871]
[1753491344557,2.43237404,3722.7,3722.6,3.2812054]
[1753491347459,2.43237404,3722.7,3722.6,2.9923054]
[1753491348053,2.43237404,3722.7,3722.6,2.3813054]
[1753491348261,2.43237404,3722.7,3722.6,1.09015669]
[1753491348758,2.43237404,3722.7,3722.6,0.88075669]
[1753491349860,2.43237404,3722.7,3722.6,1.75825669]
[1753491350054,2.43237404,3722.7,3722.6,1.95175669]
[1753491350254,2.43237404,3722.7,3722.6,2.25305669]
[1753491350958,2.43237404,3722.7,3722.6,2.54195669]
[1753491351562,1.17027404,3722.7,3722.6,2.54195669]
[1753491351752,0.96007404,3722.7,3722.6,2.54195669]
[1753491352157,1.94297404,3722.7,3722.6,2.54195669]
[1753491352666,0.96007404,3722.7,3722.6,2.54195669]
[1753491353059,0.96007404,3722.7,3722.6,2.54736827]
[1753491353460,1.48347404,3722.7,3722.6,2.54746001]
[1753491353665,1.94297404,3722.7,3722.6,2.54746001]
[1753491354668,2.22997404,3722.7,3722.6,2.54746001]
[1753491354870,0.96007404,3722.7,3722.6,5.75526001]
[1753491355068,2.43237404,3722.7,3722.6,4.09406001]
[1753491355464,2.43237404,3722.7,3722.6,4.45246001]
[1753491356272,2.43237404,3722.7,3722.6,4.09406001]
[1753491357877,2.96949404,3722.7,3722.6,3.55693001]
[1753491358080,2.96949404,3722.7,3722.6,0.88626001]
[1753491358979,2.43237404,3722.7,3722.6,0.88626001]
[1753491359379,2.43237404,3722.7,3722.6,2.25856001]
[1753491360677,2.96949404,3722.7,3722.6,2.25856001]
[1753491361878,2.96949404,3722.7,3722.6,1.09566001]
[1753491362072,2.96949404,3722.7,3722.6,0.88626001]
[1753491362481,2.96949404,3722.7,3722.6,1.24456001]
[1753491362683,2.96949404,3722.7,3722.6,1.76366001]
[1753491362883,2.96949404,3722.7,3722.6,1.95716001]
[1753491363983,2.96949404,3722.7,3722.6,2.25846001]
[1753491364874,2.43237404,3722.7,3722.6,2.25846001]
[1753491365083,2.43237404,3722.7,3722.6,5.76046001]
[1753491365983,0.65747404,3722.7,3722.6,5.76046001]
[1753491367085,0.96697404,3722.7,3722.6,5.76046001]
[1753491368381,1.27727404,3722.7,3722.6,5.76046001]
[1753491369585,0.96697404,3722.7,3722.6,5.76046001]
[1753491370079,0.96697404,3722.7,3722.6,5.76026973]
[1753491370479,1.48677404,3722.7,3722.6,5.76026973]
[1753491370684,1.94717404,3722.7,3722.6,5.76026973]
[1753491371582,2.46717404,3722.7,3722.6,5.76026973]
[1753491371785,2.46717404,3722.7,3722.6,4.09386973]
[1753491371982,2.46717404,3722.7,3722.6,0.88606973]
[1753491372187,3.00429404,3722.7,3722.6,0.88606973]
[1753491372883,3.00429404,3722.7,3722.6,0.34893973]
[1753491373079,3.00429404,3722.7,3722.6,0.88606973]
[1753491373279,2.46717404,3722.7,3722.6,0.88606973]
[1753491374283,3.00429404,3722.7,3722.6,0.34893973]
[1753491375386,2.46717404,3722.7,3722.6,0.88606973]
[1753491378084,2.46717404,3722.7,3722.6,0.34893973]
[1753491378282,4.45150887,3722.7,3722.6,0.34893973]
[1753491378481,4.45150887,3722.7,3721.8,2.08234871]
[1753491378482,1.0398,3721.9,3721.8,1.21155]
[1753491378684,2.46717404,3721.9,3721.8,1.21155]
[1753491380385,2.46717404,3721.9,3721.8,2.64279871]
[1753491380590,0.96697404,3721.9,3721.8,2.93699871]
[1753491381090,2.46717404,3721.9,3721.8,2.64279871]
[1753491381392,2.46717404,3721.9,3721.8,2.93699871]
[1753491381786,2.00677404,3721.9,3721.8,2.93699871]
[1753491381987,1.17647404,3721.9,3721.8,2.93699871]
[1753491382186,0.96697404,3721.9,3721.8,2.93699871]
[1753491382394,0.65747404,3721.9,3721.8,2.93699871]
[1753491382587,0.3103,3722.1,3721.9,0.692]
[1753491382789,0.96685272,3722.0,3721.9,1.22923]
[1753491383292,0.3095,3722.0,3721.9,2.29413]
[1753491383992,1.4999,3722.0,3721.9,2.29413]
[1753491384190,1.8097,3722.0,3721.9,2.29413]
[1753491384386,1.8097,3722.0,3721.9,3.03337871]
[1753491384892,0.3095,3722.3,3722.2,2.29409]
[1753491385085,0.3095,3722.3,3722.2,3.03333871]
[1753491385086,0.96667664,3722.3,3722.2,3.03333871]
[1753491385493,0.6198,3722.3,3722.2,3.03333871]
[1753491385789,1.5995,3722.6,3722.5,2.29405]
[1753491385986,2.25661319,3722.6,3722.5,3.03329871]
[1753491386190,1.48591319,3722.6,3722.5,3.03329871]
[1753491386390,0.96661319,3722.6,3722.5,3.03329871]
[1753491386588,1.17611319,3722.6,3722.5,3.03329871]
[1753491386784,1.48641319,3722.6,3722.5,3.03329871]
[1753491387092,2.46681319,3722.6,3722.5,3.03329871]
[1753491387294,2.46681319,3722.6,3722.5,6.24109871]
[1753491387490,1.8097,3722.6,3722.5,5.94689871]
[1753491387988,2.34683,3722.6,3722.5,5.94689871]
[1753491388189,1.8097,3722.6,3722.5,5.94689871]
[1753491389198,1.8097,3722.6,3722.5,6.24109871]
[1753491389394,1.8097,3722.9,3722.8,2.294]
[1753491389697,2.46676915,3722.9,3722.8,3.03324871]
[1753491389886,3.00385915,3722.9,3722.8,3.03324871]
[1753491390494,2.46676915,3722.9,3722.8,3.37272865]
[1753491390694,1.17606915,3722.9,3722.8,3.37272865]
[1753491391300,1.48636915,3722.9,3722.8,3.37272865]
[1753491391501,0.8293,3722.9,3722.8,3.37272865]
[1753491391696,1.8097,3722.9,3722.8,3.37272865]
[1753491393302,2.46667062,3722.9,3722.8,3.37272865]
[1753491395605,2.46661045,3722.9,3722.8,3.37272865]
[1753491396302,2.46661045,3722.9,3722.8,3.07852865]
[1753491397306,2.46661045,3722.9,3722.8,2.73904871]
[1753491398108,2.46661045,3722.9,3722.8,3.04724871]
[1753491398709,2.46661045,3722.9,3722.8,2.73904871]
[1753491399403,2.46661045,3722.9,3722.8,3.04724871]
[1753491403815,1.17591045,3722.9,3722.8,3.04724871]
[1753491404109,2.11161045,3722.9,3722.8,3.04724871]
[1753491404309,2.39881045,3722.9,3722.8,3.04724871]
[1753491404511,1.7419,3722.9,3722.8,3.04724871]
[1753491410515,0.3095,3722.9,3722.8,3.04724871]
[1753491411114,0.5788,3723.1,3723.0,2.31668]
[1753491411319,0.3071,3723.3,3723.2,1.24545]
[1753491411617,0.96383783,3723.3,3723.2,2.31665]
[1753491412211,0.67473783,3723.3,3723.2,2.31665]
[1753491412722,0.5788,3723.8,3723.7,2.31657]
[1753491413021,0.5788,3723.8,3723.7,6.26361871]
[1753491414114,1.2694,3723.8,3723.7,6.26361871]
[1753491414313,1.7059,3723.8,3723.7,5.64811871]
[1753491415012,1.7059,3723.8,3723.7,4.79901871]
[1753491415819,1.7059,3723.8,3723.7,5.59410522]
[1753491416018,1.7059,3723.8,3723.7,6.29480522]
[1753491417219,1.7059,3723.8,3723.7,6.60300522]
[1753491417722,0.2891,3723.8,3723.7,6.26361871]
[1753491417920,0.5788,3723.8,3723.7,6.26361871]
[1753491418113,1.4187,3723.8,3723.7,6.26361871]
[1753491418423,1.7059,3723.8,3723.7,6.26361871]
[1753491419723,0.2891,3723.8,3723.7,6.26361871]
[1753491420225,0.2,3723.9,3723.8,2.00836]
[1753491420520,0.4891,3723.9,3723.8,2.31656]
[1753491421217,0.2,3723.9,3723.8,2.31656]
[1753491422211,0.4891,3723.9,3723.8,2.31656]
[1753491423224,0.2,3723.9,3723.8,2.31656]
[1753491423716,0.4891,3723.9,3723.8,2.31656]
[1753491424919,0.7788,3723.9,3723.8,2.31656]
[1753491425220,0.9727,3723.9,3723.8,5.52436]
[1753491425620,1.4179,3723.9,3723.8,5.52436]
[1753491427017,1.9361,3723.9,3723.8,5.21616]
[1753491427522,1.9361,3723.9,3723.8,4.90886]
[1753491427723,1.9361,3723.9,3723.8,5.24624452]
[1753491427919,1.9361,3723.9,3723.8,4.58674452]
[1753491428217,1.9361,3723.9,3723.8,0.33738452]
[1753491428218,2.47304,3723.9,3723.8,0.33738452]
[1753491428618,3.12554389,3723.9,3723.8,0.33738452]
[1753491429225,3.12554389,3723.9,3723.4,0.53701]
[1753491429226,1.0308,3723.6,3723.4,0.53701]
[1753491429420,0.7152,3723.5,3723.4,0.53701]
[1753491429633,1.7802,3723.5,3723.4,0.53701]
[1753491430521,1.7802,3723.5,3723.4,0.99081]
[1753491430824,1.7802,3723.5,3723.4,1.28341]
[1753491431524,1.7802,3723.5,3723.4,1.77511]
[1753491432724,1.7802,3723.5,3723.4,2.25831]
[1753491432918,1.335,3723.5,3723.4,2.25831]
[1753491433120,0.5053,3723.8,3723.7,0.53697]
[1753491433319,0.5053,3723.8,3723.7,6.20531871]
[1753491433320,0.3156,3723.8,3723.7,6.20531871]
[1753491435127,0.6198,3723.8,3723.7,6.20531871]
[1753491435619,0.3156,3723.8,3723.7,6.20531871]
[1753491435814,0.2,3723.9,3723.8,2.25826]
[1753491436421,0.5156,3723.9,3723.8,2.25826]
[1753491436626,0.2,3723.9,3723.8,2.25826]
[1753491436826,0.2,3723.9,3723.8,2.25435477]
[1753491437222,0.5156,3723.9,3723.8,2.25435477]
[1753491437420,1.9802,3723.9,3723.8,2.25435477]
[1753491437727,1.9802,3723.9,3723.8,1.96435477]
[1753491438323,1.9802,3723.9,3723.8,1.66695477]
[1753491438526,1.9802,3723.9,3723.8,0.53305477]
[1753491440421,1.9802,3723.9,3723.8,0.98685477]
[1753491440621,1.9802,3723.9,3723.8,1.66695477]
[1753491440826,1.9802,3723.9,3723.8,1.96435477]
[1753491441326,1.9802,3723.9,3723.8,2.58786344]
[1753491441826,0.5156,3723.9,3723.8,2.58786344]
[1753491442025,0.2,3723.9,3723.8,2.58786344]
[1753491444221,1.9802,3723.9,3723.8,2.58786344]
[1753491444420,1.9802,3723.9,3723.8,1.15916344]
[1753491444623,1.9802,3723.9,3723.8,0.86656344]
[1753491446529,1.9802,3723.9,3723.8,1.15916344]
[1753491446733,1.9802,3723.9,3723.8,1.61296344]
[1753491446927,1.9802,3723.9,3723.8,2.29786344]
[1753491447829,1.9802,3723.9,3723.8,2.00046344]
[1753491448330,1.9802,3723.9,3723.8,2.29786344]
[1753491449729,0.7167,3723.9,3723.8,2.58786344]
[1753491449928,0.2,3723.9,3723.8,2.58786344]
[1753491453728,0.955,3724.4,3724.3,2.25819]
[1753491453928,0.955,3724.4,3724.3,6.53874738]
[1753491455132,1.1419,3725.2,3725.1,0.84596]
[1753491455332,1.1419,3725.2,3725.1,1.17946867]
[1753491455333,1.79597193,3725.2,3725.1,1.17946867]
[1753491455530,2.33273193,3725.2,3725.1,0.87026867]
[1753491455730,2.93063193,3725.2,3725.1,0.87026867]
[1753491456524,2.93063193,3725.2,3725.1,1.36436867]
[1753491456729,2.39387193,3725.2,3725.1,2.19116867]
[1753491457434,2.39387193,3725.2,3725.1,2.19221255]
[1753491457631,2.39387193,3725.2,3725.1,2.29326]
[1753491461135,0.65407193,3725.2,3725.1,2.29326]
[1753491461336,0.4516,3725.5,3725.4,2.29323]
[1753491461337,1.1403,3725.5,3725.4,2.29323]
[1753491461532,1.1403,3725.5,3725.4,6.5744661]
[1753491461732,0.8887,3725.9,3725.8,1.24027]
[1753491461945,1.9382,3725.9,3725.8,6.24021871]
[1753491463733,1.6483,3725.9,3725.8,6.24021871]
[1753491465143,1.9382,3725.9,3725.8,6.24021871]
[1753491465833,0.2,3725.9,3725.8,6.24021871]
[1753491466039,0.018,3726.3,3726.2,2.29311]
[1753491466238,0.018,3726.3,3726.2,6.24015871]
[1753491467338,0.6887,3727.1,3727.0,2.293]
[1753491467536,0.6887,3727.1,3727.0,6.24004871]
[1753491468041,0.9967,3727.3,3727.2,2.29297]
[1753491469031,1.2866,3727.3,3727.2,2.29297]
[1753491469231,0.4012,3727.3,3727.2,2.29297]
[1753491469932,1.0857,3727.3,3727.2,2.29297]
[1753491470137,1.3937,3727.3,3727.2,2.29297]
[1753491473743,1.3937,3727.3,3727.2,13.26997]
[1753491475141,1.3937,3727.3,3727.2,13.26897]
[1753491475142,1.6836,3727.3,3727.2,13.26897]
[1753491477142,1.6836,3727.6,3727.5,2.29292]
[1753491477344,1.3937,3727.6,3727.5,3.03216871]
[1753491479446,1.6836,3727.6,3727.5,3.03216871]
[1753491483148,2.32957967,3727.6,3727.5,3.03216871]
[1753491483351,1.6836,3727.6,3727.5,3.03216871]
[1753491484548,1.6836,3727.6,3727.5,11.50542]
[1753491484744,1.6836,3727.6,3727.5,12.24466871]
[1753491486452,1.6836,3727.6,3727.5,1.27566871]
[1753491487048,1.6836,3727.6,3727.5,1.55986871]
[1753491487253,2.33068277,3727.6,3727.5,1.55986871]
[1753491488153,2.33068277,3727.6,3727.5,1.86376871]
[1753491488354,2.33068277,3727.6,3727.5,2.51366871]
[1753491489246,2.33068277,3727.6,3727.5,2.05776871]
[1753491489651,2.33068277,3727.6,3727.5,0.53642]
[1753491490242,2.86709277,3727.6,3727.5,0.53642]
[1753491490749,1.725,3727.5,3727.4,0.53643]
[1753491490949,2.37208277,3727.5,3727.4,0.53643]
[1753491491349,2.37208277,3727.5,3727.4,1.12453]
[1753491491749,2.37208277,3727.5,3727.4,1.77443]
[1753491491946,0.64708277,3727.5,3727.4,2.63588417]
[1753491492145,0.5933,3727.7,3727.6,0.53641]
[1753491492347,1.55271773,3727.7,3727.6,3.03545871]
[1753491492555,1.76171773,3727.7,3727.6,3.03545871]
[1753491493358,1.24171773,3727.7,3727.6,3.37543447]
[1753491493855,1.55211773,3727.7,3727.6,3.37543447]
[1753491494058,2.07001773,3727.7,3727.6,3.37543447]
[1753491494258,2.90980773,3727.7,3727.6,0.33997576]
[1753491494456,1.25011,3727.6,3727.5,11.50041]
[1753491494655,2.90982773,3727.6,3727.5,11.84059625]
[1753491494850,2.07001773,3727.6,3727.5,13.60039625]
[1753491496762,2.90982773,3727.6,3727.5,13.60039625]
[1753491496961,2.90982773,3727.6,3727.5,2.63640625]
[1753491497360,2.90982773,3727.6,3727.5,2.63717004]
[1753491498562,2.37341773,3727.6,3727.5,2.63717004]
[1753491498758,2.90982773,3727.6,3727.5,2.63717004]
[1753491499361,2.90982773,3727.6,3727.5,2.10075004]
[1753491500160,2.90982773,3727.6,3727.5,2.63717004]
[1753491500766,2.37341773,3727.6,3727.5,2.63717004]
[1753491501167,3.82334074,3727.6,3727.5,2.63717004]
[1753491501368,2.07001773,3727.6,3727.5,2.63717004]
[1753491502267,0.64901773,3727.6,3727.5,2.63717004]
[1753491504773,1.76375316,3727.7,3727.6,2.29621]
[1753491504966,1.76375316,3727.7,3727.6,3.37640875]
[1753491505171,2.07265316,3727.7,3727.6,3.37640875]
[1753491505669,2.37605316,3727.7,3727.6,3.37640875]
[1753491506068,1.76375316,3727.7,3727.6,3.03545871]
[1753491506272,1.76375316,3727.7,3727.6,14.33963151]
[1753491506870,0.65165316,3727.7,3727.6,14.33963151]
[1753491508776,1.55475316,3727.7,3727.6,14.33963151]
[1753491509078,1.76375316,3727.7,3727.6,14.33963151]
[1753491509278,2.07265316,3727.7,3727.6,14.33963151]
[1753491509480,2.07265316,3727.7,3727.6,3.37663151]
[1753491509677,2.07265316,3727.7,3727.6,14.33963151]
[1753491510477,2.07265316,3727.7,3727.6,3.37663151]
[1753491510677,2.07265316,3727.7,3727.6,14.33963151]
[1753491511579,2.07265316,3727.7,3727.6,3.37663151]
[1753491511780,2.07265316,3727.7,3727.6,14.33963151]
[1753491512576,2.07265316,3727.7,3727.6,3.37663151]
[1753491512772,2.37605316,3727.7,3727.6,14.33963151]
[1753491514978,2.37605316,3727.7,3727.6,3.37269317]
[1753491515181,0.53641,3727.6,3727.5,10.962]
[1753491515481,2.86396316,3727.6,3727.5,11.8402456]
[1753491515680,2.86396316,3727.6,3727.5,11.5906256]
[1753491515884,2.86396316,3727.6,3727.5,13.0260256]
[1753491516083,2.86396316,3727.6,3727.5,13.5624456]
[1753491516279,2.86396316,3727.6,3727.5,13.0260256]
[1753491516783,2.21234,3727.4,3727.3,3.2078]
[1753491516986,2.86399316,3727.4,3727.3,3.2078]
[1753491517586,2.86399316,3727.4,3727.3,3.54965817]
[1753491518087,7.86399316,3727.4,3727.3,0.34185817]
[1753491518479,1.21969,3727.0,3726.9,10.963]
[1753491518680,2.86404316,3727.0,3726.9,11.30487999]
[1753491518886,2.86404316,3727.0,3726.9,1.3679287]
[1753491519288,4.31081767,3727.0,3726.9,1.6555287]
[1753491519791,4.31081767,3727.0,3726.9,2.3095287]
[1753491520789,4.31081767,3727.0,3726.9,2.30933852]
[1753491521991,4.31081767,3727.0,3726.9,0.34168981]
[1753491522490,2.86404316,3727.0,3726.9,0.34168981]
[1753491522686,1.21974,3726.7,3726.6,1.2284]
[1753491522897,2.86409316,3726.7,3726.6,2.80307843]
[1753491524292,2.86409316,3726.7,3726.6,2.06382972]
[1753491525792,0.53658,3726.4,3726.3,3.9501]
[1753491525991,2.21248,3726.4,3726.3,5.27138854]
[1753491526192,2.86413316,3726.4,3726.3,2.06358854]
[1753491527192,2.86413316,3726.4,3726.3,0.748]
[1753491527393,2.21251,3726.2,3726.1,1.96764871]
[1753491527589,2.21251,3726.2,3726.1,2.8026364]
[1753491528799,2.21251,3726.2,3726.1,2.06338769]
[1753491530001,1.92001,3726.2,3726.1,2.60000769]
[1753491530397,1.3834,3726.2,3726.1,2.60000769]
[1753491530598,1.3834,3726.2,3726.1,2.06338769]
[1753491531401,1.92001,3726.2,3726.1,2.60000769]
[1753491531600,1.92001,3726.2,3726.1,2.06338769]
[1753491532996,2.21251,3726.2,3726.1,2.06338769]
[1753491533604,2.21251,3726.2,3726.1,2.06294658]
[1753491534700,1.12481,3726.2,3726.1,2.59956658]
[1753491535104,0.83996,3726.6,3726.4,1.0299]
[1753491535299,1.03136,3726.6,3726.5,2.46144871]
[1753491535499,1.91996,3726.6,3726.5,2.46144871]
[1753491535700,1.6759,3726.6,3726.5,2.99801871]
[1753491536503,1.23669,3727.0,3726.9,1.7222]
[1753491536705,1.23669,3727.0,3726.9,2.46144871]
[1753491536908,1.23669,3727.0,3726.9,2.99795871]
[1753491537399,0.53649,3727.0,3726.9,2.99795871]
[1753491537595,1.02465,3727.3,3727.2,1.7222]
[1753491537795,1.21969,3727.0,3726.9,1.71834871]
[1753491538001,2.21239,3727.0,3726.9,2.30559075]
[1753491538402,2.21239,3727.0,3726.9,2.59319075]
[1753491538903,1.6759,3727.0,3726.9,2.59319075]
[1753491539106,0.92287,3727.2,3727.1,0.6923]
[1753491539407,1.91987,3727.2,3727.1,2.79592946]
[1753491539605,2.21237,3727.2,3727.1,2.79592946]
[1753491540510,1.91987,3727.2,3727.1,2.79592946]
[1753491540806,1.3834,3727.2,3727.1,3.33240946]
[1753491541006,0.53646,3727.3,3727.2,1.22877]
[1753491541300,0.53646,3727.3,3727.2,2.59315075]
[1753491541704,0.53646,3727.3,3727.2,2.05668075]
[1753491541907,1.12466,3727.3,3727.2,2.05668075]
[1753491542108,2.21236,3727.3,3727.2,2.05668075]
[1753491543205,0.7002,3727.6,3727.2,1.02678075]
[1753491543411,1.91978,3727.8,3727.7,0.6923]
[1753491543612,2.56943222,3727.8,3727.7,1.7222]
[1753491544312,2.56943222,3727.8,3727.7,2.05730201]
[1753491544511,2.86193222,3727.8,3727.7,2.05730201]
[1753491545608,2.56943222,3727.8,3727.7,2.05730201]
[1753491546208,2.85613222,3727.8,3727.7,2.05730201]
[1753491547702,2.85613222,3727.8,3727.7,1.7222]
[1753491553417,2.85613222,3727.8,3726.5,1.34139]
[1753491553418,1.6811,3727.6,3727.3,0.7618]
[1753491553614,2.21754,3727.4,3727.3,1.0486]
[1753491553814,2.21754,3727.4,3727.3,1.7568]
[1753491556922,1.61974,3727.4,3727.3,1.7568]
[1753491557716,1.61974,3727.4,3727.3,2.09169945]
[1753491557922,1.93084,3727.4,3727.3,2.09169945]
[1753491558322,2.21754,3727.4,3727.3,2.09169945]
[1753491559024,2.86729689,3727.4,3727.3,2.09169945]